fUST/lending_fUST_20240116
["ID","MTS","AMOUNT","RATE_DAILY","PERIOD"]
[311720639,1705357702684,1380.29206665,0.00022101,2]
[311720640,1705357702937,452.10708087,0.00022101,2]
[311720641,1705357703318,560.92808973,0.00022101,2]
[311720642,1705357705348,976.79905731,0.00022101,2]
[311720644,1705357707054,6517.89223906,0.00022101,2]
[311720645,1705357707362,20848.89855073,0.00022101,2]
[311720646,1705357707737,1060.992591,0.00021108,2]
[311720647,1705357709072,402.90810268,0.00022101,2]
[311720648,1705357714274,521.45877329,0.00022101,2]
[311720649,1705357717135,154.98450155,0.00019892,3]
[311720650,1705357717708,10515.69454875,0.00022101,2]
[311720651,1705357721348,521.74012753,0.00019892,2]
[311720652,1705357723053,1257.1907731,0.00019892,2]
[311720653,1705357725185,1380.29206665,0.00022101,2]
[311720654,1705357725653,500.0,0.00022101,2]
[311720655,1705357726455,3126.02728391,0.00022101,2]
[311720656,1705357729472,23832.59163549,0.00022101,2]
[311720657,1705357730782,902.37527688,0.00022101,2]
[311720658,1705357732872,1222.03199723,0.00022101,2]
[311720659,1705357733916,361.02080012,0.00022101,2]
[311720660,1705357735045,13703.21181576,0.00022101,2]
[311720661,1705357735134,154.98450155,0.00019892,3]
[311720662,1705357735389,3481.1678536,0.00022101,2]
[311720663,1705357744551,594.38972109,0.00022101,2]
[311720664,1705357814688,154.98450155,0.00022101,2]
[311720665,1705357815303,587.55478974,0.00022101,2]
[311720666,1705357815709,166.4504165,0.00022101,2]
[311720757,1705357833308,-7949.84974405,0.00022102,2]
[311720759,1705357833318,-18880.85904478,0.00022102,2]
[311720762,1705357833328,-157.01387924,0.00022102,2]
[311720764,1705357833337,-166.15606132,0.00022102,2]
[311720765,1705357833347,-259.83999665,0.00022102,2]
[311720768,1705357833356,-1054.31145251,0.00022102,2]
[311720769,1705357833366,-418.32131314,0.00022102,2]
[311720771,1705357833376,-547.11897724,0.00022102,2]
[311720772,1705357833385,-191.64214353,0.00022102,2]
[311720773,1705357833394,-645.36049036,0.00022102,2]
[311720774,1705357833403,-12030.58832556,0.00022102,2]
[311720776,1705357833412,-158.20187319,0.00022102,2]
[311720778,1705357833421,-514.73944313,0.00022102,2]
[311720781,1705357833443,-5656.01141166,0.00022102,2]
[311720783,1705357833454,-530.13400363,0.00022143,2]
[311720785,1705357833463,-182.50978617,0.00022337,2]
[311720787,1705357833473,-214.95644143,0.00022337,2]
[311720789,1705357833486,-157.11446676,0.00022337,2]
[311720791,1705357833496,-344.73296744,0.00022337,2]
[311720793,1705357833506,-162.16655393,0.00022343,2]
[311720795,1705357833516,-200.0,0.00024311,7]
[311720797,1705357833525,-284.043193,0.00024457,2]
[311720799,1705357833536,-154.98450155,0.00024999,4]
[311720801,1705357833545,-1044.83564264,0.00026741,2]
[311720803,1705357833555,-280.0,0.00026742,15]
[311720805,1705357833565,-15878.27503862,0.00026996,2]
[311720806,1705357833575,-1380.29206665,0.00027897,2]
[311720807,1705357833584,-438.60960849,0.00027898,2]
[311720808,1705357833594,-3176.34553816,0.0002844,3]
[311720809,1705357833608,-1425.62210888,0.0002844,3]
[311720814,1705357838296,-624.97480263,0.0002844,3]
[311720815,1705357838353,-1900.73755033,0.0002844,3]
[311720816,1705357838363,-155.0,0.0002845,2]
[311720817,1705357838373,-1911.20507046,0.00028859,2]
[311720818,1705357838411,-366.43795788,0.00028859,2]
[311720820,1705357838421,-155.06512735,0.00029,2]
[311720822,1705357838430,-620.00017328,0.00029033,2]
[311720824,1705357838439,-5239.01495004,0.00029154,2]
[311720826,1705357838448,-153.0,0.00029315,2]
[311720828,1705357838457,-153.0,0.00029315,2]
[311720830,1705357838467,-154.9522141,0.00029315,2]
[311720832,1705357838476,-153.0,0.00029315,2]
[311720834,1705357838485,-153.0,0.00029315,2]
[311720836,1705357838495,-153.0,0.00029315,2]
[311720838,1705357838506,-153.0,0.00029315,2]
[311720840,1705357838515,-153.0,0.00029315,2]
[311720842,1705357838524,-153.0,0.00029315,2]
[311720844,1705357838533,-153.0,0.00029315,2]
[311720846,1705357838543,-153.0,0.00029315,2]
[311720848,1705357838552,-183.5137817,0.00029315,2]
[311720850,1705357838561,-153.0,0.00029315,2]
[311720852,1705357838570,-197.1945829,0.0002935,2]
[311720854,1705357838579,-495.50755505,0.00029396,2]
[311720856,1705357838588,-874.49996905,0.00029396,2]
[311720857,1705357838597,-391.0,0.00029416,15]
[311720859,1705357838607,-155.34268239,0.00029447,2]
[311720861,1705357838617,-309.81420128,0.00029448,2]
[311720863,1705357838626,-261.27836778,0.00029448,7]
[311720866,1705357838635,-717.61930455,0.00029448,2]
[311720868,1705357838644,-222.07368143,0.00029448,2]
[311720869,1705357838654,-900.15662951,0.00029448,2]
[311720871,1705357838663,-264.62217345,0.00029448,2]
[311720873,1705357838672,-1216.68445421,0.00029448,2]
[311720875,1705357838681,-10906.29834358,0.00029448,2]
[311720877,1705357838691,-193.03645094,0.00029448,2]
[311720879,1705357838700,-544.55782366,0.00029448,2]
[311720882,1705357838709,-362.23843764,0.00029448,2]
[311720883,1705357838719,-319.10328676,0.00029448,2]
[311720885,1705357838728,-2515.06625082,0.00029449,2]
[311720888,1705357838739,-22300.83321271,0.0002945,4]
[311720890,1705357838749,-50000.0,0.0002945,3]
[311720891,1705357838758,-90720.97725736,0.0002945,3]
[311720893,1705357838768,-5000.0,0.0002945,5]
[311720895,1705357838778,-5000.0,0.0002945,5]
[311720897,1705357838787,-3764.36261588,0.0002945,4]
[311720899,1705357838797,-197.1945829,0.00029488,2]
[311720901,1705357838806,-2142.256358,0.000296,2]
[311720903,1705357838820,-197.1945829,0.00029625,2]
[311720905,1705357838830,-938.83614383,0.00029698,2]
[311720908,1705357838840,-254.65014886,0.00029701,3]
[311720910,1705357838850,-197.1945829,0.00029763,2]
[311720912,1705357838860,-155.0,0.0002982,2]
[311720913,1705357838869,-239.23954931,0.00029897,2]
[311720915,1705357838879,-1675.99791625,0.00029897,2]
[311720916,1705357838889,-137935.08317447,0.00029898,2]
[311720917,1705357838900,-197.1945829,0.000299,2]
[311720918,1705357838909,-155.07284413,0.00029966,2]
[311720919,1705357838919,-688.3625771,0.00029996,2]
[311720920,1705357838928,-889.12928806,0.00029996,2]
[311720921,1705357838940,-160.66342932,0.00029996,2]
[311720922,1705357838949,-260.6117619,0.00029996,2]
[311720923,1705357838958,-385.32335527,0.00029996,2]
[311720924,1705357838968,-1065.00864573,0.00029996,2]
[311720925,1705357838977,-1196.17159553,0.00029996,2]
[311720926,1705357838986,-160.15306217,0.00029996,2]
[311720927,1705357838996,-300.43370441,0.00029996,2]
[311720928,1705357839006,-1985.5364354,0.00029996,2]
[311720929,1705357839015,-253.71660409,0.00029996,2]
[311720930,1705357839025,-337.62713008,0.00029996,2]
[311720931,1705357839035,-10426.06525822,0.00029997,2]
[311720932,1705357839044,-210.94,0.00029997,2]
[311720937,1705357839159,-210.94,0.00029997,2]
[311720939,1705357839168,-284.38494274,0.00029998,2]
[311720941,1705357839178,-36937.48343061,0.00029998,2]
[311720943,1705357839187,-196.86070104,0.00029998,2]
[311720945,1705357839196,-198.56384838,0.00029998,2]
[311720947,1705357839205,-399.4817543,0.00029998,2]
[311720949,1705357839214,-212.86730932,0.00029998,2]
[311720951,1705357839223,-156.45838195,0.00029998,2]
[311720953,1705357839232,-1100.18396117,0.00029998,2]
[311720955,1705357839242,-155.26692217,0.00029998,2]
[311720957,1705357839251,-261.65158813,0.00029998,2]
[311720959,1705357839260,-155.02789907,0.00029998,2]
[311720961,1705357839269,-350.26180181,0.00029998,2]
[311720963,1705357839278,-4512.04684909,0.00029998,2]
[311720965,1705357839287,-19828.48347523,0.00029998,2]
[311720967,1705357839296,-155.2443869,0.00029998,2]
[311720969,1705357839305,-242.5183996,0.00029998,2]
[311720971,1705357839314,-155.10542453,0.00029998,2]
[311720972,1705357839324,-849.03657826,0.00029998,2]
[311720974,1705357839333,-155.22489204,0.00029998,2]
[311720976,1705357839342,-1736.44731525,0.00029998,2]
[311720977,1705357839352,-1337.89062647,0.00029998,2]
[311720978,1705357839361,-155.10542453,0.00029998,2]
[311720979,1705357839370,-19675.95998529,0.00029998,2]
[311720980,1705357839379,-2873.77131778,0.00029998,2]
[311720981,1705357839388,-155.07907532,0.00029998,2]
[311720982,1705357839397,-155.07288426,0.00029998,2]
[311720984,1705357839408,-309.79865023,0.00029998,2]
[311720986,1705357839417,-164.31941956,0.00029998,2]
[311720987,1705357839426,-155.00930056,0.00029998,2]
[311720988,1705357839435,-1240.5015561,0.00029998,2]
[311720989,1705357839444,-322.94976484,0.00029998,2]
[311720990,1705357839453,-285.80914557,0.00029998,2]
[311720991,1705357839463,-525.7882447,0.00029998,2]
[311720992,1705357839472,-155.20695697,0.00029998,2]
[311720993,1705357839481,-155.01395126,0.00029998,2]
[311720994,1705357839490,-343.80031935,0.00029998,2]
[311720995,1705357839499,-328.82847466,0.00029998,2]
[311720996,1705357839509,-528.34029589,0.00029998,2]
[311720997,1705357839519,-259.67918237,0.00029998,2]
[311720998,1705357839528,-174.74418082,0.00029998,2]
[311720999,1705357839537,-359.18840404,0.00029998,2]
[311721000,1705357839546,-302.1253582,0.00029998,2]
[311721001,1705357839556,-619.91128443,0.00029998,2]
[311721002,1705357839565,-1333.55058265,0.00029998,2]
[311721003,1705357839574,-678.72039425,0.00029998,2]
[311721004,1705357839583,-251.94344966,0.00029998,2]
[311721005,1705357839593,-535.26591,0.00029998,2]
[311721006,1705357839602,-535.26591,0.00029998,2]
[311721007,1705357839612,-2190.33404,0.00029998,2]
[311721008,1705357839621,-2190.33404,0.00029998,2]
[311721009,1705357839631,-151.0,0.00029998,2]
[311721010,1705357839640,-102.82710419,0.00029998,2]
[311721023,1705357841413,-2454.18896115,0.00029,2]
[311721024,1705357841423,-48.17289581,0.00029998,2]
[311721025,1705357841434,-409.84957717,0.00029999,2]
[311721026,1705357841450,-500.0,0.00029999,2]
[311721027,1705357841471,-500.0,0.00029999,2]
[311721028,1705357841485,-500.0,0.00029999,2]
[311721029,1705357841500,-500.0,0.00029999,2]
[311721030,1705357841512,-500.0,0.00029999,2]
[311721031,1705357841524,-500.0,0.00029999,2]
[311721032,1705357841535,-705.9292233,0.00029999,2]
[311721033,1705357841550,-500.0,0.00029999,2]
[311721034,1705357841562,-705.9292233,0.00029999,2]
[311721035,1705357841573,-705.9292233,0.00029999,2]
[311721036,1705357841584,-705.9292233,0.00029999,2]
[311721037,1705357841595,-705.9292233,0.00029999,2]
[311721038,1705357841606,-500.0,0.00029999,2]
[311721039,1705357841616,-705.9292233,0.00029999,2]
[311721040,1705357841628,-180.50634916,0.00029999,2]
[311721041,1705357841638,-705.9292233,0.00029999,2]
[311721042,1705357841662,-705.9292233,0.00029999,2]
[311721043,1705357841674,-500.0,0.00029999,2]
[311721044,1705357841685,-705.9292233,0.00029999,2]
[311721045,1705357841696,-465.98575588,0.00029999,2]
[311721046,1705357841706,-705.9292233,0.00029999,2]
[311721047,1705357841718,-163.67203423,0.00029999,2]
[311721048,1705357841733,-542.25718907,0.00029999,2]
[311721049,1705357841746,-705.9292233,0.00029999,2]
[311721050,1705357841769,-500.0,0.00029999,2]
[311721051,1705357841781,-239.38672453,0.00029999,2]
[311721052,1705357841794,-466.54249877,0.00029999,2]
[311721053,1705357841806,-705.9292233,0.00029999,2]
[311721054,1705357841817,-705.9292233,0.00029999,2]
[311721055,1705357841828,-705.9292233,0.00029999,2]
[311721056,1705357841838,-705.9292233,0.00029999,2]
[311721057,1705357841850,-705.9292233,0.00029999,2]
[311721058,1705357841860,-705.9292233,0.00029999,2]
[311721059,1705357841872,-705.9292233,0.00029999,2]
[311721060,1705357841883,-705.9292233,0.00029999,2]
[311721061,1705357841894,-500.0,0.00029999,2]
[311721062,1705357841907,-410.17907788,0.00029999,2]
[311721063,1705357841918,-91.44822234,0.00029999,2]
[311721101,1705357845143,-5939.74,0.0002999,3]
[311721102,1705357845152,-408.55177765,0.00029999,2]
[311721103,1705357845161,-473.67938456,0.00029999,2]
[311721104,1705357845173,-466.82515068,0.00029999,2]
[311721105,1705357845182,-940.50453524,0.00029999,2]
[311721106,1705357845191,-940.50453524,0.00029999,2]
[311721107,1705357845199,-369.65107123,0.00029999,2]
[311721108,1705357845208,-185.14516262,0.00029999,2]
[311721109,1705357845218,-500.0,0.00029999,2]
[311721110,1705357845227,-216.37447953,0.00029999,2]
[311721111,1705357845236,-207.85741011,0.00029999,2]
[311721112,1705357845247,-500.0,0.00029999,2]
[311721113,1705357845256,-382.52627203,0.00029999,2]
[311721114,1705357845265,-199.22536922,0.00029999,2]
[311721115,1705357845274,-500.0,0.00029999,2]
[311721116,1705357845284,-177.34372504,0.00029999,2]
[311721117,1705357845293,-500.0,0.00029999,2]
[311721118,1705357845302,-500.0,0.00029999,2]
[311721119,1705357845311,-500.0,0.00029999,2]
[311721120,1705357845320,-300.0,0.00029999,2]
[311721121,1705357845329,-417.31603376,0.00029999,2]
[311721122,1705357845338,-500.0,0.00029999,2]
[311721123,1705357845347,-500.0,0.00029999,2]
[311721124,1705357845356,-500.0,0.00029999,2]
[311721125,1705357845365,-388.9124457,0.00029999,4]
[311721126,1705357845374,-500.0,0.00029999,4]
[311721127,1705357845383,-500.0,0.00029999,4]
[311721128,1705357845392,-500.0,0.00029999,4]
[311721129,1705357845402,-500.0,0.00029999,4]
[311721130,1705357845411,-283.44061724,0.00029999,4]
[311721131,1705357845421,-162.00428231,0.00029999,4]
[311721132,1705357845430,-615.9622552,0.00029999,4]
[311721133,1705357845439,-500.0,0.00029999,4]
[311721134,1705357845449,-500.0,0.00029999,4]
[311721135,1705357845459,-366.49486318,0.00029999,4]
[311721136,1705357845468,-500.0,0.00029999,4]
[311721137,1705357845477,-500.0,0.00029999,4]
[311721138,1705357845487,-500.0,0.00029999,4]
[311721139,1705357845498,-486.77475838,0.00029999,4]
[311721140,1705357845508,-500.0,0.00029999,4]
[311721141,1705357845517,-366.37368794,0.00029999,2]
[311721142,1705357845526,-334.65965807,0.00029999,2]
[311721143,1705357845536,-363.37375893,0.00029999,2]
[311721144,1705357845546,-157.01729483,0.00029999,2]
[311721145,1705357845555,-10846.2392248,0.0003,2]
[311721146,1705357845568,-360.93394571,0.0003,2]
[311721157,1705357846993,-2155.37244949,0.00029989,2]
[311721158,1705357847050,-5794.47729456,0.00029989,2]
[311721159,1705357847059,-1044.83328699,0.00029998,2]
[311721160,1705357847068,-158.73276496,0.00029998,2]
[311721161,1705357847078,-3428.21960399,0.0003,2]
[311721162,1705357847087,-1413.42859915,0.0003,2]
[311721163,1705357847097,-131398.04796121,0.0003,2]
[311721164,1705357847109,-3273.309542,0.0003,2]
[311721208,1705358534040,1466.67664473,0.00018074,2]
[311721209,1705358541948,-154.98450155,0.00023092,2]
[311721210,1705358541969,-154.98450155,0.00023092,2]
[311721211,1705358541989,-261.99076107,0.00023092,2]
[311721212,1705358542009,-154.98450155,0.00023092,2]
[311721213,1705358542032,-1738.64209079,0.00023092,2]
[311721214,1705358542051,-154.98450155,0.00023093,2]
[311721215,1705358542071,-1222.03199723,0.00023093,2]
[311721216,1705358542092,-154.98450155,0.00023093,2]
[311721217,1705358542118,-1292.03766784,0.00023094,2]
[311721218,1705358542246,-2710.59097431,0.00023094,2]
[311721219,1705358542270,-7282.78400101,0.00023094,2]
[311721220,1705358554026,1466.67664473,0.00018491,2]
[311721221,1705358576032,1466.67664473,0.00017317,2]
[311721222,1705358592036,717.8094373,0.00017309,2]
[311721223,1705358607555,-154.98450155,0.00023077,2]
[311721224,1705358607577,-329.10784795,0.00023077,2]
[311721225,1705358607598,-162.90595907,0.00023077,2]
[311721226,1705358607619,-166.76500768,0.00023077,2]
[311721227,1705358607643,-178.67391792,0.00023077,2]
[311721228,1705358607670,-242.79443155,0.00023078,2]
[311721229,1705358607693,-154.98450155,0.00023078,2]
[311721230,1705358607714,-175.00244479,0.00023079,2]
[311721231,1705358607735,-253.76844676,0.00023079,2]
[311721232,1705358607756,-2036.50780426,0.00023079,2]
[311721233,1705358607777,-322.69466175,0.0002308,2]
[311721234,1705358607798,-156.74786988,0.0002308,2]
[311721235,1705358607818,-495.06260529,0.0002308,2]
[311721236,1705358807392,250.0,0.00021913,2]
[311721237,1705358846538,20455.201091,0.00021902,2]
[311721239,1705359021481,976.44607626,0.00020492,2]
[311721240,1705359023963,385.585608,0.00021764,2]
[311721241,1705359030796,400.35198,0.00021763,2]
[311721327,1705359033970,-4450.57,0.0002275,3]
[311721328,1705359033980,-154.98450155,0.00022755,2]
[311721330,1705359033989,-154.98450155,0.00022755,2]
[311721332,1705359033999,-587.55478974,0.00022756,2]
[311721334,1705359034009,-1694.70771461,0.00022756,2]
[311721336,1705359034018,-260.79058258,0.00022756,2]
[311721338,1705359034027,-3368.25,0.00022757,3]
[311721340,1705359034037,-213.13739698,0.00022758,2]
[311721342,1705359034046,-615.97967559,0.00022758,2]
[311721344,1705359034055,-154.98450155,0.00022758,2]
[311721346,1705359034064,-594.38972109,0.00022759,2]
[311721347,1705359034073,-36916.98061949,0.00022759,2]
[311721349,1705359034083,-191.16884209,0.00022759,2]
[311721351,1705359034092,-19842.21540701,0.00022759,2]
[311721353,1705359034101,-154.98450155,0.0002276,2]
[311721355,1705359034111,-160.80243984,0.0002276,2]
[311721357,1705359034120,-154.98450155,0.0002276,2]
[311721359,1705359034129,-15201.30761783,0.0002276,2]
[311721361,1705359034139,-1240.92738063,0.0002276,2]
[311721363,1705359034148,-902.37527688,0.0002276,2]
[311721365,1705359034157,-1991.06584155,0.0002276,2]
[311721367,1705359034167,-1577.23828043,0.0002276,2]
[311721368,1705359034176,-4850.27,0.00022761,3]
[311721370,1705359034185,-156.74786988,0.00022767,2]
[311721372,1705359034194,-154.98450155,0.00022767,2]
[311721374,1705359034203,-7949.84974405,0.00022767,2]
[311721376,1705359034213,-7993.35951483,0.00022767,2]
[311721378,1705359034222,-361.02080012,0.00022767,2]
[311721380,1705359034231,-154.98450155,0.00022767,4]
[311721382,1705359034241,-154.98450155,0.00022768,2]
[311721384,1705359034250,-2705.10797595,0.00022768,5]
[311721386,1705359034260,-198.98525444,0.00022768,2]
[311721388,1705359034269,-560.92808973,0.00022768,2]
[311721390,1705359034278,-286.00588053,0.00022768,2]
[311721391,1705359034287,-2710.59097431,0.00022768,2]
[311721393,1705359034297,-521.45877329,0.00022768,2]
[311721395,1705359034307,-452.10708087,0.00022769,2]
[311721397,1705359034316,-154.98450155,0.00022769,2]
[311721399,1705359034325,-154.98450155,0.00022769,2]
[311721401,1705359034334,-679.24429502,0.00022769,2]
[311721403,1705359034344,-301.52967926,0.00022769,2]
[311721405,1705359034355,-3741.03452946,0.00022769,2]
[311721407,1705359034364,-875.26749955,0.0002277,2]
[311721408,1705359034373,-261.99076107,0.0002277,2]
[311721410,1705359034385,-1222.03199723,0.0002277,2]
[311721412,1705359034394,-1031.50825959,0.0002277,2]
[311721414,1705359034403,-154.98450155,0.0002277,2]
[311721416,1705359034412,-322.69466175,0.0002277,2]
[311721418,1705359034421,-861.45126448,0.0002277,2]
[311721420,1705359034432,-402.90810268,0.00022771,2]
[311721422,1705359034441,-166.4504165,0.00022771,2]
[311721424,1705359034450,-154.98450155,0.00022771,2]
[311721426,1705359034459,-13703.21181576,0.00022771,2]
[311721428,1705359034468,-5977.0634463,0.00022771,2]
[311721569,1705359039704,-242.79443155,0.00022755,2]
[311721570,1705359039713,-329.10784795,0.00022755,2]
[311721571,1705359039721,-500.0,0.00022755,2]
[311721572,1705359039730,-366.70788952,0.00022755,2]
[311721576,1705359039819,-276.81645462,0.00022755,2]
[311721578,1705359039828,-113.31841098,0.00022755,2]
[311721580,1705359039840,-412.74461078,0.00022755,2]
[311721581,1705359039849,-60883.10019035,0.00022758,2]
[311721582,1705359039860,-2798.80336675,0.00022758,2]
[311721583,1705359039872,-17431.90819554,0.00022758,2]
[311721584,1705359039882,-14871.83510443,0.00022771,2]
[311721585,1705359039891,-14593.02750522,0.00022771,2]
[311721586,1705359039901,-5082.93248007,0.00022771,2]
[311721587,1705359039911,-232.37497637,0.00022775,2]
[311721588,1705359039919,-154.21250895,0.00022954,2]
[311721590,1705359039928,-166.65370388,0.00023077,2]
[311721591,1705359039937,-1337.49022709,0.00023078,2]
[311721592,1705359039946,-176.93681013,0.00023078,2]
[311721593,1705359039955,-174.69022745,0.00023078,2]
[311721594,1705359039964,-239.23954931,0.00023078,2]
[311721595,1705359039973,-253.62625705,0.00023078,2]
[311721596,1705359039982,-1735.84834937,0.00023092,2]
[311721597,1705359039990,-155.27383661,0.00023092,2]
[311721598,1705359039999,-2700.20522708,0.00023092,2]
[311721599,1705359040008,-260.43027978,0.00023092,2]
[311721600,1705359040018,-686.84015754,0.000241,2]
[311721601,1705359040026,-366.43795788,0.00024134,2]
[311721602,1705359040035,-5239.01495004,0.00024381,2]
[311721603,1705359040044,-232.37497636,0.0002459,2]
[311721604,1705359040053,-155.34268239,0.00024627,2]
[311721605,1705359040063,-261.27836778,0.00024627,7]
[311721606,1705359040072,-717.61930455,0.00024627,2]
[311721607,1705359040081,-309.81420128,0.00024628,2]
[311721608,1705359040090,-2515.06625082,0.0002464,2]
[311721609,1705359040099,-193.03645094,0.0002464,2]
[311721610,1705359040108,-491.10761571,0.00024655,2]
[311721611,1705359040116,-294.87990361,0.00024655,2]
[311721612,1705359040125,-155.13487424,0.00024656,2]
[311721613,1705359040135,-500.0,0.00024657,2]
[311721614,1705359040143,-500.0,0.00024657,2]
[311721615,1705359040152,-500.0,0.00024657,2]
[311721616,1705359040161,-500.0,0.00024657,2]
[311721617,1705359040171,-500.0,0.00024657,2]
[311721618,1705359040179,-500.0,0.00024657,2]
[311721619,1705359040188,-500.0,0.00024657,2]
[311721620,1705359040197,-500.0,0.00024657,2]
[311721621,1705359040205,-500.0,0.00024657,2]
[311721622,1705359040214,-500.0,0.00024657,2]
[311721623,1705359040222,-500.0,0.00024657,2]
[311721624,1705359040231,-500.0,0.00024657,2]
[311721625,1705359040240,-263.23548355,0.00024657,2]
[311721626,1705359040248,-497.57048689,0.0002495,5]
[311721627,1705359040257,-678.39249046,0.00025,2]
[311721628,1705359040266,-200.0,0.00025139,7]
[311721629,1705359040275,-232.37497636,0.00026406,2]
[311721630,1705359040283,-155.0,0.00027397,2]
[311721631,1705359040292,-280.0,0.00027653,15]
[311721632,1705359040301,-688.3625771,0.000277,2]
[311721633,1705359040310,-292.40640566,0.000279,2]
[311721634,1705359040319,-232.37497636,0.00028221,2]
[311721635,1705359040327,-155.0,0.00028767,2]
[311721636,1705359040335,-155.06512735,0.00029,2]
[311721637,1705359040344,-2454.18896115,0.00029,2]
[311721638,1705359040355,-816.773,0.00029095,4]
[311721639,1705359040364,-935.82213156,0.00029431,2]
[311721640,1705359040373,-8872.10740602,0.00029448,2]
[311721641,1705359040385,-3876.31788072,0.00029448,2]
[311721642,1705359040395,-210.94,0.00029458,2]
[311721643,1705359040404,-25220.75198679,0.00029459,3]
[311721644,1705359040415,-24779.24801321,0.00029459,3]
[311721645,1705359040424,-75227.66402532,0.00029459,3]
[311721646,1705359040435,-5000.0,0.00029459,5]
[311721647,1705359040444,-17985.03663009,0.00029459,4]
[311721649,1705359040453,-5000.0,0.00029459,5]
[311721651,1705359040462,-4645.35460057,0.00029459,4]
[311721654,1705359040471,-11964.9893255,0.00029473,4]
[311721659,1705359040481,-2142.256358,0.000296,2]
[311721662,1705359040490,-254.65014886,0.00029701,3]
[311721663,1705359040499,-938.83614383,0.00029833,2]
[311721665,1705359040508,-210.94,0.00029935,2]
[311721667,1705359040517,-137935.08317447,0.00029936,2]
[311721668,1705359040527,-155.00930056,0.00029998,2]
[311721669,1705359040536,-474.14060752,0.00029999,2]
[311721671,1705359040545,-387.50774563,0.00029999,2]
[311721672,1705359040554,-500.0,0.00029999,2]
[311721674,1705359040563,-500.0,0.00029999,2]
[311721676,1705359040572,-500.0,0.00029999,2]
[311721678,1705359040581,-500.0,0.00029999,2]
[311721681,1705359040590,-500.0,0.00029999,2]
[311721684,1705359040599,-500.0,0.00029999,2]
[311721687,1705359040608,-500.0,0.00029999,2]
[311721690,1705359040617,-500.0,0.00029999,2]
[311721692,1705359040626,-582.9039766,0.00029999,2]
[311721695,1705359040636,-500.0,0.00029999,2]
[311721698,1705359040645,-500.0,0.00029999,2]
[311721701,1705359040653,-224.48931691,0.00029999,2]
[311721703,1705359040662,-500.0,0.00029999,2]
[311721706,1705359040672,-499.83217657,0.00029999,2]
[311721709,1705359040681,-500.0,0.00029999,2]
[311721712,1705359040690,-500.0,0.00029999,2]
[311721715,1705359040698,-500.0,0.00029999,2]
[311721717,1705359040707,-500.0,0.00029999,2]
[311721720,1705359040716,-500.0,0.00029999,2]
[311721723,1705359040725,-500.0,0.00029999,2]
[311721726,1705359040734,-500.0,0.00029999,2]
[311721729,1705359040743,-500.0,0.00029999,2]
[311721731,1705359040752,-500.0,0.00029999,2]
[311721734,1705359040761,-500.0,0.00029999,2]
[311721737,1705359040770,-500.0,0.00029999,2]
[311721740,1705359040779,-500.0,0.00029999,2]
[311721742,1705359040788,-500.0,0.00029999,2]
[311721745,1705359040797,-500.0,0.00029999,2]
[311721748,1705359040805,-500.0,0.00029999,2]
[311721751,1705359040815,-500.0,0.00029999,2]
[311721754,1705359040824,-500.0,0.00029999,2]
[311721756,1705359040833,-500.0,0.00029999,2]
[311721759,1705359040843,-500.0,0.00029999,2]
[311721762,1705359040852,-181.94243175,0.00029999,2]
[311721765,1705359040861,-500.0,0.00029999,2]
[311721768,1705359040871,-311.31550912,0.00029999,2]
[311721771,1705359040882,-500.0,0.00029999,2]
[311721773,1705359040891,-500.0,0.00029999,2]
[311721776,1705359040900,-500.0,0.00029999,2]
[311721779,1705359040909,-807.38,0.0003,2]
[311721782,1705359040918,-3757.35908,0.0003,2]
[311721785,1705359040928,-4449.49394648,0.0003,4]
[311721787,1705359040937,-514.72296648,0.0003,2]
[311721790,1705359040946,-350.93054121,0.0003,2]
[311721793,1705359040955,-507.44515137,0.0003,3]
[311721795,1705359040964,-2500.0,0.0003,7]
[311721796,1705359040973,-403.89866808,0.0003,3]
[311721799,1705359040983,-194.85553355,0.0003,4]
[311721802,1705359040992,-3432.61100297,0.0003,2]
[311721805,1705359041001,-1413.42859915,0.0003,2]
[311721808,1705359041010,-297.8809135,0.0003,4]
[311721810,1705359041019,-210.0,0.0003,2]
[311721813,1705359041028,-29157.41377576,0.00030036,3]